bitfinex/quotes_BTCUSD_20240627
["timestamp","ask_amount","ask_price","bid_price","bid_amount"]
[1719457002385,0.1199,61088.0,61085.0,0.00748289]
[1719457002583,0.1199,61088.0,61084.0,0.002]
[1719457002790,0.1069,61088.0,61084.0,0.001]
[1719457003193,0.272598,61088.0,61085.0,0.001]
[1719457003982,0.259598,61088.0,61083.0,0.16371]
[1719457004226,0.259598,61088.0,61086.0,0.001]
[1719457004227,0.270598,61088.0,61086.0,0.001]
[1719457004381,0.187698,61088.0,61086.0,0.001]
[1719457004581,0.174698,61088.0,61086.0,0.001]
[1719457005436,0.163698,61088.0,61080.0,0.327435]
[1719457005617,0.163698,61088.0,61082.0,0.163713]
[1719457005824,0.174698,61088.0,61085.0,0.001]
[1719457006361,0.163701,61087.0,61085.0,0.002]
[1719457006512,0.259603,61086.0,61085.0,0.002]
[1719457006856,0.259603,61086.0,61085.0,0.001]
[1719457007317,0.259603,61086.0,61080.0,0.001]
[1719457007546,0.259603,61086.0,61085.0,0.001]
[1719457007966,0.259603,61086.0,61080.0,0.164719]
[1719457007967,0.163706,61085.0,61080.0,0.164719]
[1719457008351,0.163706,61085.0,61080.0,0.001]
[1719457008488,0.163709,61084.0,61078.0,0.49117]
[1719457008710,0.0058,61083.0,61078.0,0.49117]
[1719457009121,0.0058,61083.0,61079.0,0.163722]
[1719457009527,0.01020396,61082.0,61079.0,0.163722]
[1719457009712,0.163722,61079.0,61078.0,0.001]
[1719457009928,0.50716996,61079.0,61078.0,0.001]
[1719457010138,0.50716996,61079.0,61067.0,0.327504]
[1719457010139,0.491181,61078.0,61067.0,0.327504]
[1719457010334,0.163735,61074.0,61069.0,0.163749]
[1719457010536,0.17393896,61074.0,61069.0,0.163749]
[1719457010780,0.01020396,61073.0,61069.0,0.163749]
[1719457010983,0.01020396,61072.0,61069.0,0.163749]
[1719457011264,0.01020396,61071.0,61069.0,0.163749]
[1719457011435,0.01020396,61070.0,61069.0,0.163749]
[1719457011614,0.0058,61070.0,61069.0,0.163749]
[1719457011808,0.01600501,61070.0,61069.0,0.163749]
[1719457012008,0.0058,61070.0,61069.0,0.163749]
[1719457012252,0.01600498,61070.0,61069.0,0.163749]
[1719457012586,0.01020498,61070.0,61069.0,0.163749]
[1719457012777,0.01020498,61070.0,61068.0,0.327503]
[1719457012978,0.01020498,61069.0,61068.0,0.491254]
[1719457013182,0.01020499,61072.0,61070.0,0.163746]
[1719457013457,0.01020499,61071.0,61070.0,0.163746]
[1719457013761,0.01020499,61071.0,61070.0,0.583839]
[1719457013967,0.0058,61076.0,61071.0,0.163742]
[1719457014202,0.01020451,61075.0,61071.0,0.163742]
[1719457015176,0.0102043,61074.0,61072.0,0.17119441]
[1719457015370,0.0102043,61073.0,61072.0,0.17119441]
[1719457015619,0.0102043,61075.0,61072.0,0.17119441]
[1719457015836,0.14915096,61083.0,61072.0,0.17119441]
[1719457015837,0.01879,61093.0,61074.0,0.17720346]
[1719457015988,0.01020297,61090.0,61089.0,0.163695]
[1719457016442,0.01020297,61090.0,61089.0,0.17114869]
[1719457016642,0.01020297,61090.0,61089.0,0.82593069]
[1719457016841,0.01020297,61090.0,61089.0,0.49853969]
[1719457017579,0.01020297,61090.0,61089.0,0.49953969]
[1719457017580,0.02420297,61090.0,61089.0,0.49953969]
[1719457018109,0.014,61090.0,61089.0,0.49953969]
[1719457018311,0.02420231,61090.0,61089.0,0.49953969]
[1719457018514,0.02420231,61090.0,61089.0,0.17214869]
[1719457018745,0.02420231,61090.0,61089.0,0.17114869]
[1719457018940,0.01020231,61090.0,61089.0,0.00745369]
[1719457019305,0.02120231,61090.0,61089.0,0.00845369]
[1719457019502,0.02120231,61090.0,61089.0,0.001]
[1719457019713,0.02120231,61090.0,61089.0,0.00841548]
[1719457019926,0.02120234,61090.0,61089.0,0.00841548]
[1719457020145,0.03420234,61090.0,61089.0,0.00941548]
[1719457021049,0.03420237,61090.0,61089.0,0.00941548]
[1719457023141,0.03420237,61090.0,61089.0,0.002]
[1719457023340,0.19789437,61090.0,61089.0,0.002]
[1719457025964,0.03504237,61090.0,61089.0,0.002]
[1719457026602,0.03504237,61090.0,61089.0,0.00940761]
[1719457027003,0.0350415,61090.0,61089.0,0.00940761]
[1719457029754,0.02484,61090.0,61089.0,0.00940761]
[1719457030562,0.05524,61090.0,61089.0,0.00940761]
[1719457030733,0.13114,61090.0,61089.0,0.00940761]
[1719457031115,0.14114,61090.0,61089.0,0.00940761]
[1719457031328,0.15114,61090.0,61089.0,0.00940761]
[1719457031551,0.13114,61090.0,61089.0,0.00940761]
[1719457031768,0.14134127,61090.0,61089.0,0.00940761]
[1719457031976,0.32503327,61090.0,61089.0,0.00940761]
[1719457032492,0.32503327,61090.0,61089.0,0.002]
[1719457033425,0.32503324,61090.0,61089.0,0.002]
[1719457034069,1.09011154,61090.0,61089.0,0.002]
[1719457034264,1.22734486,61090.0,61089.0,0.002]
[1719457034527,1.12921206,61090.0,61089.0,0.002]
[1719457034731,1.25187806,61090.0,61089.0,0.002]
[1719457035207,1.25190817,61090.0,61089.0,0.002]
[1719457035411,1.22737427,61090.0,61089.0,0.002]
[1719457035758,1.25190817,61090.0,61089.0,0.002]
[1719457035960,1.03331206,61090.0,61089.0,0.002]
[1719457036164,1.12921206,61090.0,61089.0,0.002]
[1719457036562,1.45659706,61090.0,61089.0,0.002]
[1719457039783,1.4567403,61090.0,61089.0,0.002]
[1719457040106,1.4072953,61090.0,61089.0,0.002]
[1719457040295,1.45671514,61090.0,61089.0,0.002]
[1719457041232,1.65668687,61090.0,61089.0,0.002]
[1719457041886,1.69132034,61090.0,61089.0,0.002]
[1719457042533,1.49132034,61090.0,61089.0,0.002]
[1719457042861,1.48116427,61090.0,61089.0,0.002]
[1719457043068,1.49136893,61090.0,61089.0,0.002]
[1719457044471,1.49136893,61090.0,61077.0,0.44321365]
[1719457044472,0.818625,61078.0,61077.0,0.44321365]
[1719457044814,0.818625,61078.0,61077.0,0.45063878]
[1719457044815,0.94472966,61078.0,61077.0,0.45063878]
[1719457045390,1.3122509,61078.0,61077.0,0.45063878]
[1719457045851,1.41042172,61078.0,61077.0,0.44321365]
[1719457046053,1.261975,61078.0,61077.0,0.44321365]
[1719457046252,1.41082565,61078.0,61077.0,0.44321365]
[1719457046408,1.32366911,61078.0,61077.0,0.44321365]
[1719457046648,1.32592565,61078.0,61077.0,0.44321365]
[1719457046812,1.41582565,61078.0,61077.0,0.44321365]
[1719457047129,1.32466911,61078.0,61077.0,0.44321365]
[1719457048087,1.30466911,61078.0,61077.0,0.44321365]
[1719457048258,1.30466911,61078.0,61077.0,0.60661365]
[1719457048259,0.02220401,61078.0,61077.0,0.60661365]
[1719457048605,0.01720401,61078.0,61077.0,0.60661365]
[1719457048805,0.18092901,61078.0,61077.0,0.60661365]
[1719457049068,0.18592901,61078.0,61077.0,0.60661365]
[1719457049289,0.175725,61078.0,61077.0,0.1634]
[1719457049422,0.18592954,61078.0,61077.0,0.1634]
[1719457049626,0.175725,61078.0,61077.0,0.1634]
[1719457049822,0.18592963,61078.0,61077.0,0.1634]
[1719457050025,0.53337963,61078.0,61077.0,0.1634]
[1719457050335,0.163741,61072.0,61071.0,0.000924]
[1719457050535,0.17394563,61072.0,61071.0,0.000924]
[1719457052550,0.17394474,61072.0,61071.0,0.000924]
[1719457053537,0.17394474,61072.0,61071.0,0.001924]
[1719457054347,0.01020374,61072.0,61071.0,0.001924]
[1719457054551,0.17394174,61073.0,61071.0,0.166024]
[1719457054679,0.01020374,61072.0,61071.0,0.166024]
[1719457055106,0.01020374,61074.0,61071.0,0.166024]
[1719457055713,0.01020088,61073.0,61071.0,0.166024]
[1719457055920,0.01020088,61072.0,61071.0,0.166024]
[1719457056615,0.01020088,61074.0,61071.0,0.166024]
[1719457056816,0.01020088,61073.0,61071.0,0.166024]
[1719457057025,0.01020088,61072.0,61071.0,0.165024]
[1719457057466,0.01220088,61074.0,61071.0,0.165024]
[1719457057674,0.01020088,61073.0,61071.0,0.165024]
[1719457058660,0.01020088,61072.0,61071.0,0.165024]
[1719457058864,0.01020152,61072.0,61071.0,0.165024]
[1719457059070,0.01020152,61074.0,61071.0,0.165024]
[1719457059286,0.163733,61075.0,61071.0,0.165024]
[1719457059592,0.01020159,61074.0,61071.0,0.165024]
[1719457059795,0.01220159,61074.0,61071.0,0.165024]
[1719457059953,0.01020159,61073.0,61071.0,0.165024]
[1719457060549,0.01020164,61072.0,61071.0,0.165024]
[1719457060764,0.01020164,61074.0,61071.0,0.165024]
[1719457061756,0.01020164,61074.0,61071.0,0.166024]
[1719457061979,0.163736,61074.0,61071.0,0.166024]
[1719457062181,0.05158161,61073.0,61071.0,0.166024]
[1719457062388,0.01019996,61072.0,61071.0,0.166024]
[1719457063031,0.0515819,61073.0,61071.0,0.166024]
[1719457063208,0.01019996,61072.0,61071.0,0.166024]
[1719457063407,0.05159138,61073.0,61071.0,0.166024]
[1719457063609,0.01019996,61072.0,61071.0,0.165024]
[1719457063972,0.01019996,61072.0,61071.0,0.092124]
[1719457064315,0.05154316,61072.0,61071.0,0.092124]
[1719457064935,0.01019996,61072.0,61071.0,0.092124]
[1719457065316,0.01019996,61072.0,61071.0,0.093124]
[1719457065317,0.05137798,61072.0,61071.0,0.093124]
[1719457066857,0.01020008,61072.0,61071.0,0.093124]
[1719457067256,0.05146557,61072.0,61071.0,0.093124]
[1719457068104,0.21520657,61072.0,61071.0,0.093124]
[1719457068308,0.54268857,61072.0,61071.0,0.001924]
[1719457068602,0.54267822,61072.0,61071.0,0.001924]
[1719457068811,0.491223,61072.0,61071.0,0.001924]
[1719457069009,0.54267815,61072.0,61071.0,0.001924]
[1719457069805,0.56267815,61072.0,61071.0,0.001924]
[1719457070857,0.65867815,61072.0,61071.0,0.001924]
[1719457071081,0.66467815,61072.0,61071.0,0.000924]
[1719457071486,0.67167815,61072.0,61071.0,0.000924]
[1719457071889,0.67170435,61072.0,61071.0,0.000924]
[1719457072433,0.67168577,61072.0,61071.0,0.000924]
[1719457072783,0.55568577,61072.0,61071.0,0.000924]
[1719457073265,0.65168577,61072.0,61071.0,0.000924]
[1719457073668,0.48794477,61072.0,61067.0,0.05725592]
[1719457073875,0.17394385,61071.0,61068.0,0.0746]
[1719457074080,0.01019985,61070.0,61068.0,0.0746]
[1719457074277,0.01019985,61070.0,61069.0,0.163749]
[1719457074478,0.013,61072.0,61070.0,0.163746]
[1719457074681,0.01020052,61071.0,61070.0,0.163746]
[1719457075058,0.01020072,61071.0,61070.0,0.163746]
[1719457075238,0.006,61072.0,61071.0,0.071]
[1719457075460,0.01620072,61072.0,61071.0,0.071]
[1719457076869,0.01620072,61072.0,61071.0,0.1591]
[1719457077365,0.01020072,61072.0,61071.0,1.24145944]
[1719457077567,0.00084,61078.0,61077.0,0.1591]
[1719457077705,0.01104151,61078.0,61077.0,0.322827]
[1719457078255,0.01104152,61078.0,61077.0,0.322827]
[1719457078630,0.01104155,61078.0,61077.0,0.322827]
[1719457079160,0.01104155,61078.0,61077.0,0.650282]
[1719457080342,0.02004155,61078.0,61077.0,0.650282]
[1719457080541,0.02704155,61078.0,61077.0,0.650282]
[1719457080925,0.02704155,61078.0,61077.0,0.322827]
[1719457080926,0.02004152,61078.0,61077.0,0.322827]
[1719457081134,0.02004152,61078.0,61077.0,0.650282]
[1719457081338,0.02704152,61078.0,61077.0,0.650282]
[1719457083087,0.02704152,61078.0,61077.0,0.61751445]
[1719457083709,0.01020331,61078.0,61077.0,0.45378745]
[1719457083911,0.20553073,61085.0,61079.0,0.163721]
[1719457084118,0.15094946,61084.0,61079.0,0.163721]
[1719457084314,0.05494946,61083.0,61079.0,0.163721]
[1719457085353,0.01020333,61082.0,61080.0,0.163718]
[1719457085556,0.01020333,61081.0,61080.0,0.163718]
[1719457085754,0.05385331,61083.0,61080.0,0.163718]
[1719457085936,0.01020333,61082.0,61080.0,0.163718]
[1719457086139,0.01020333,61081.0,61080.0,0.163718]
[1719457086344,0.01020333,61083.0,61080.0,0.163718]
[1719457086795,0.096,61084.0,61080.0,0.163718]
[1719457086987,0.02320427,61083.0,61080.0,0.163718]
[1719457087218,0.02320427,61083.0,61079.0,0.001]
[1719457087219,0.021,61083.0,61081.0,0.163715]
[1719457087394,0.01020427,61082.0,61081.0,0.163715]
[1719457087749,0.01820427,61083.0,61081.0,0.315815]
[1719457087954,0.01020427,61082.0,61081.0,0.315815]
[1719457088206,0.10620309,61082.0,61080.0,0.001]
[1719457088409,0.01020309,61081.0,61079.0,0.072]
[1719457089882,0.107,61082.0,61079.0,0.072]
[1719457090088,0.01020313,61081.0,61079.0,0.072]
[1719457090443,0.01020313,61081.0,61079.0,0.235722]
[1719457090650,0.02020313,61081.0,61079.0,0.236722]
[1719457090838,0.01020313,61080.0,61079.0,0.236722]
[1719457091045,0.01020313,61080.0,61079.0,0.237722]
[1719457091623,0.01020313,61080.0,61079.0,0.236722]
[1719457091982,0.01020313,61080.0,61079.0,0.235722]
[1719457092219,0.009,61080.0,61079.0,0.236722]
[1719457092546,0.01920313,61080.0,61079.0,0.04023245]
[1719457093342,0.01920313,61080.0,61079.0,0.04123245]
[1719457093343,0.02920313,61080.0,61079.0,0.04123245]
[1719457094269,0.02920313,61080.0,61079.0,0.20495445]
[1719457096303,0.019,61080.0,61079.0,0.20495445]
[1719457096484,0.02920207,61080.0,61079.0,0.20495445]
[1719457096636,0.02920209,61080.0,61079.0,0.20495445]
[1719457099597,0.02920203,61080.0,61079.0,0.20495445]
[1719457101963,0.02920203,61080.0,61079.0,0.1721869]
[1719457102759,0.02920099,61080.0,61079.0,0.1721869]
[1719457104178,0.02920099,61080.0,61079.0,0.0084649]
[1719457104379,0.019,61080.0,61079.0,0.0084649]
[1719457104605,0.07124511,61080.0,61079.0,0.0084649]
[1719457104785,0.07124511,61080.0,61079.0,0.1721869]
[1719457105421,0.07124511,61080.0,61079.0,0.165722]
[1719457105981,0.07079092,61080.0,61079.0,0.165722]
[1719457106358,0.07079154,61080.0,61079.0,0.165722]
[1719457109064,0.019,61080.0,61079.0,0.165722]
[1719457109443,0.02920077,61080.0,61079.0,0.165722]
[1719457109586,0.07121643,61080.0,61079.0,0.165722]
[1719457109792,0.07121643,61080.0,61079.0,0.82061]
[1719457109992,0.02920077,61080.0,61079.0,1.48969298]
[1719457110195,0.02920077,61080.0,61079.0,1.58569298]
[1719457110395,0.019,61080.0,61079.0,1.58569298]
[1719457111019,0.00084,61090.0,61089.0,0.163695]
[1719457111329,0.00084,61090.0,61089.0,0.322995]
[1719457111641,0.01104122,61090.0,61089.0,0.977777]
[1719457112269,0.01104121,61090.0,61089.0,0.977777]
[1719457113762,0.01104121,61090.0,61089.0,0.978777]
[1719457113763,0.02104121,61090.0,61089.0,0.978777]
[1719457114475,0.02104121,61090.0,61089.0,0.979777]
[1719457114476,0.03304121,61090.0,61089.0,0.979777]
[1719457115312,0.02284,61090.0,61089.0,0.979777]
[1719457115511,0.0330351,61090.0,61089.0,0.979777]
[1719457115782,0.03303454,61090.0,61089.0,0.979777]
[1719457118670,0.03303517,61090.0,61089.0,0.979777]
[1719457119427,0.02195852,61090.0,61089.0,0.979777]
[1719457121258,0.02195852,61090.0,61089.0,0.652386]
[1719457121707,0.02195808,61090.0,61089.0,0.652386]
[1719457122449,0.02195808,61090.0,61089.0,0.493086]
[1719457124974,0.01176335,61090.0,61089.0,0.493086]
[1719457125099,0.02195908,61090.0,61089.0,0.493086]
[1719457125306,0.02195913,61090.0,61089.0,0.493086]
[1719457125506,0.02195913,61090.0,61089.0,0.582686]
[1719457125710,0.02195913,61090.0,61089.0,0.652886]
[1719457126187,0.02195885,61090.0,61089.0,0.652886]
[1719457128050,0.02195922,61090.0,61089.0,0.652886]
[1719457128863,0.02279922,61090.0,61089.0,0.652886]
[1719457131405,0.0227993,61090.0,61089.0,0.652886]
[1719457132805,0.0227994,61090.0,61089.0,0.652886]
[1719457133041,0.163679,61096.0,61090.0,0.16369]
[1719457133042,0.163677,61096.0,61090.0,0.16369]
[1719457133280,0.163677,61096.0,61091.0,0.16369]
[1719457133544,0.163659,61103.0,61097.0,0.163673]
[1719457133738,0.20549227,61102.0,61095.0,0.491036]
[1719457133931,0.163662,61102.0,61095.0,0.163677]
[1719457134333,0.163662,61102.0,61096.0,0.163676]
[1719457135519,0.163662,61102.0,61097.0,0.1519]
[1719457136088,0.173662,61102.0,61097.0,0.1519]
[1719457136847,0.163662,61102.0,61097.0,0.1519]
[1719457136987,0.173662,61102.0,61097.0,0.1539]
[1719457138334,0.04053914,61101.0,61097.0,0.1539]
[1719457138706,0.173662,61102.0,61097.0,0.1539]
[1719457138855,0.04045416,61101.0,61100.0,0.163663]
[1719457139643,0.05045416,61101.0,61100.0,0.163663]
[1719457140090,0.04045416,61101.0,61100.0,0.163663]
[1719457140509,0.05045416,61101.0,61100.0,0.164663]
[1719457140750,0.01,61101.0,61100.0,0.164663]
[1719457141105,0.0565596,61101.0,61100.0,0.001]
[1719457141304,0.0505596,61101.0,61100.0,0.001]
[1719457142859,0.06075938,61101.0,61100.0,0.001]
[1719457143063,0.06675938,61101.0,61100.0,0.002]
[1719457143419,0.06656938,61101.0,61100.0,0.002]
[1719457143827,0.06656949,61101.0,61100.0,0.002]
[1719457146679,0.06664638,61101.0,61100.0,0.002]
[1719457147264,0.06660729,61101.0,61100.0,0.002]
[1719457149369,0.12450729,61101.0,61100.0,0.002]
[1719457149572,0.71149629,61101.0,61100.0,0.002]
[1719457149777,0.61548224,61101.0,61100.0,0.002]
[1719457149979,0.71148224,61101.0,61100.0,0.002]
[1719457152873,0.71170593,61101.0,61100.0,0.002]
[1719457153523,0.71171136,61101.0,61100.0,0.002]
[1719457154658,0.80990852,61101.0,61100.0,0.002]
[1719457155456,0.71171136,61101.0,61100.0,0.002]
[1719457156145,0.660889,61101.0,61100.0,0.002]
[1719457156364,0.83437836,61101.0,61100.0,0.002]
[1719457157224,0.85437836,61101.0,61100.0,0.002]
[1719457158421,1.18170436,61101.0,61100.0,0.002]
[1719457159015,1.06570436,61101.0,61100.0,0.002]
[1719457159182,1.16170436,61101.0,61100.0,0.002]
[1719457159383,1.16169904,61101.0,61100.0,0.002]
[1719457162515,1.16180572,61101.0,61100.0,0.002]
[1719457162926,0.988215,61101.0,61100.0,0.002]
[1719457163131,1.06596539,61101.0,61100.0,0.002]
[1719457163528,1.06680539,61101.0,61100.0,0.002]
[1719457163731,1.00890539,61101.0,61100.0,0.002]
[1719457164731,1.02890539,61101.0,61100.0,0.002]
[1719457164937,1.00890539,61101.0,61100.0,0.002]
[1719457165861,0.88605226,61101.0,61100.0,0.002]
[1719457167603,0.88605226,61101.0,61100.0,0.1591]
[1719457167604,0.35425811,61101.0,61100.0,0.1591]
[1719457168013,0.23140026,61101.0,61100.0,0.1591]
[1719457170396,0.35426897,61101.0,61100.0,0.1591]
[1719457172137,0.180503,61101.0,61100.0,0.1591]
[1719457172353,0.37514199,61101.0,61100.0,0.0714]
[1719457172581,0.200503,61101.0,61100.0,0.002]
[1719457172816,0.70247407,61101.0,61100.0,0.002]
[1719457173633,0.70168831,61101.0,61100.0,0.002]
[1719457175115,0.35436231,61101.0,61100.0,0.002]
[1719457175337,0.2315968,61101.0,61100.0,0.002]
[1719457175529,0.35449635,61101.0,61100.0,0.002]
[1719457176480,0.2315968,61101.0,61100.0,0.002]
[1719457177224,0.35451277,61101.0,61100.0,0.002]
[1719457177641,0.2315968,61101.0,61100.0,0.002]
[1719457178638,0.23196075,61101.0,61100.0,0.002]
[1719457181725,0.180503,61101.0,61100.0,0.002]
[1719457181935,0.23213997,61101.0,61100.0,0.002]
[1719457182105,0.180503,61101.0,61100.0,0.002]
[1719457182306,0.23219803,61101.0,61100.0,0.002]
[1719457185101,0.2323279,61101.0,61100.0,0.002]
[1719457188240,0.180503,61101.0,61100.0,0.002]
[1719457188390,0.23225843,61101.0,61100.0,0.002]
[1719457189170,0.25225843,61101.0,61100.0,0.002]
[1719457189378,0.55958443,61101.0,61100.0,0.002]
[1719457191270,0.507829,61101.0,61100.0,0.002]
[1719457191585,0.55945425,61101.0,61100.0,0.002]
[1719457192815,0.507829,61101.0,61100.0,0.002]
[1719457194848,0.180503,61101.0,61100.0,0.002]
[1719457195053,0.180503,61101.0,61100.0,0.0729]
[1719457197417,0.01684,61101.0,61100.0,0.326666]
[1719457197622,0.01684,61101.0,61100.0,0.653998]
[1719457198438,0.00084,61101.0,61100.0,0.651998]
[1719457198637,0.00084,61101.0,61100.0,0.324666]
[1719457198817,0.01684,61101.0,61100.0,0.326666]
[1719457200219,0.01684,61101.0,61100.0,0.653998]
[1719457200668,0.01684,61101.0,61100.0,1.49100098]
[1719457200979,0.01684,61101.0,61100.0,1.66830444]
[1719457201218,0.01674,61101.0,61100.0,1.66830444]
[1719457201344,0.01674,61101.0,61100.0,1.55230444]
[1719457201555,0.01674,61101.0,61100.0,1.64830444]
[1719457201736,0.00674,61101.0,61100.0,1.66730444]
[1719457202138,0.00174,61101.0,61100.0,1.65330444]
[1719457202341,0.00174,61101.0,61100.0,1.67330444]
[1719457202546,0.00174,61101.0,61100.0,1.67930444]
[1719457202784,0.00174,61101.0,61100.0,1.59800098]
[1719457202994,0.00174,61101.0,61100.0,1.57800098]
[1719457203386,0.00174,61101.0,61100.0,1.48200098]
[1719457203590,0.00174,61101.0,61100.0,1.57800098]
[1719457203792,0.00174,61101.0,61100.0,1.59800098]
[1719457206149,0.00839,61113.0,61112.0,0.6509]
[1719457206390,0.01858791,61113.0,61112.0,0.978167]
[1719457206747,0.00839,61113.0,61112.0,1.14050598]
[1719457206971,0.1636,61125.0,61119.0,0.249213]
[1719457207175,0.01019767,61124.0,61119.0,0.249213]
[1719457207352,0.096,61122.0,61119.0,0.0856]
[1719457207563,0.01019767,61121.0,61118.0,0.0731]
[1719457208635,0.01019767,61121.0,61117.0,0.0869]
[1719457209051,0.259607,61122.0,61117.0,0.0869]
[1719457209223,0.01019804,61121.0,61117.0,0.0869]
[1719457210106,0.01619804,61121.0,61117.0,0.0879]
[1719457210304,0.01019804,61120.0,61117.0,0.0879]
[1719457210838,0.01019804,61120.0,61117.0,0.0889]
[1719457212079,0.01019804,61120.0,61117.0,0.0879]
[1719457212286,0.266607,61122.0,61117.0,0.001]
[1719457212287,0.33743285,61119.0,61117.0,0.001]
[1719457212484,0.17381485,61118.0,61117.0,0.001]
[1719457212946,0.17381485,61118.0,61117.0,0.002]
[1719457213344,0.163625,61116.0,61112.0,0.0721]
[1719457213665,0.01019785,61115.0,61112.0,0.0721]
[1719457213870,0.01019785,61115.0,61113.0,0.0864]
[1719457215280,0.163621,61117.0,61114.0,0.02]
[1719457215515,0.01019808,61116.0,61115.0,0.02]
[1719457215838,0.01819803,61116.0,61115.0,0.02]
[1719457215985,0.01819803,61116.0,61115.0,0.183625]
[1719457216189,0.01819803,61116.0,61115.0,0.83841498]
[1719457216190,0.01019803,61116.0,61115.0,0.83841498]
[1719457216374,0.006,61118.0,61117.0,0.1852]
[1719457216747,0.006,61118.0,61117.0,0.34882]
[1719457216895,0.163599,61125.0,61119.0,0.163614]
[1719457217095,0.01019768,61124.0,61120.0,0.1652]
[1719457217320,0.01019768,61123.0,61120.0,0.1652]
[1719457217656,0.21069739,61126.0,61120.0,0.328811]
[1719457217657,0.01019768,61122.0,61120.0,0.328811]
[1719457217867,0.01019768,61121.0,61120.0,0.328811]
[1719457218479,0.01019761,61121.0,61120.0,0.328811]
[1719457218803,0.01019761,61124.0,61120.0,0.328811]
[1719457219023,0.01019761,61123.0,61120.0,0.328811]
[1719457219223,0.01019761,61122.0,61120.0,0.1662]
[1719457219515,0.01019761,61121.0,61120.0,0.001]
[1719457219688,0.17380661,61121.0,61120.0,0.002]
[1719457219826,0.17380661,61121.0,61120.0,0.001]
[1719457220780,0.17980661,61121.0,61120.0,0.001]
[1719457221566,0.17980665,61121.0,61120.0,0.001]
[1719457222389,0.18780665,61121.0,61120.0,0.002]
[1719457224796,0.177609,61121.0,61120.0,0.002]
[1719457224914,0.18780667,61121.0,61120.0,0.002]
[1719457225120,0.177609,61121.0,61120.0,0.002]
[1719457225338,0.18780668,61121.0,61120.0,0.002]
[1719457227460,0.51502568,61121.0,61120.0,0.002]
[1719457227884,0.504828,61121.0,61120.0,0.002]
[1719457228085,0.5150257,61121.0,61120.0,0.002]
[1719457229508,0.55427755,61121.0,61120.0,0.002]
[1719457230357,0.93489845,61121.0,61120.0,0.002]
[1719457230556,1.36831745,61121.0,61120.0,0.002]
[1719457231326,1.35811975,61121.0,61120.0,0.002]
[1719457231748,1.72045873,61121.0,61120.0,0.002]
[1719457231952,1.94290114,61121.0,61120.0,0.002]
[1719457232153,1.96590114,61121.0,61120.0,0.002]
[1719457232328,1.93875109,61121.0,61120.0,0.002]
[1719457232529,2.92041009,61121.0,61120.0,0.002]
[1719457232734,3.82272989,61121.0,61120.0,0.002]
[1719457232939,3.82272989,61121.0,61112.0,0.000924]
[1719457232940,0.2,61113.0,61112.0,0.000924]
[1719457233151,3.10504879,61113.0,61112.0,0.000924]
[1719457233388,3.20504879,61113.0,61112.0,0.000924]
[1719457233594,4.17333747,61113.0,61112.0,0.000924]
[1719457233995,4.17388116,61113.0,61112.0,0.000924]
[1719457234401,4.17455536,61113.0,61112.0,0.000924]
[1719457234813,4.18055536,61113.0,61112.0,0.001924]
[1719457235215,2.53310288,61113.0,61112.0,0.001924]
[1719457235421,2.39734078,61113.0,61112.0,0.001924]
[1719457235695,2.44142584,61113.0,61112.0,0.000924]
[1719457235872,2.56389631,61113.0,61112.0,0.000924]
[1719457236279,2.57789631,61113.0,61112.0,0.001924]
[1719457236454,2.82137607,61113.0,61112.0,0.001924]
[1719457236635,3.60929807,61113.0,61112.0,0.001924]
[1719457236838,3.59529807,61113.0,61112.0,0.000924]
[1719457237047,3.45983058,61113.0,61112.0,0.000924]
[1719457237250,3.62273792,61113.0,61112.0,0.000924]
[1719457237449,3.60873792,61113.0,61112.0,0.000924]
[1719457237872,3.62273792,61113.0,61112.0,0.000924]
[1719457238068,3.60873792,61113.0,61112.0,0.000924]
[1719457238690,3.75243792,61113.0,61112.0,0.000924]
[1719457238948,3.75243792,61113.0,61112.0,0.001924]
[1719457239439,3.73843792,61113.0,61112.0,0.000924]
[1719457239842,3.75243792,61113.0,61112.0,0.000924]
[1719457240189,3.73843792,61113.0,61112.0,0.000924]
[1719457240385,3.60353058,61113.0,61112.0,0.000924]
[1719457240586,3.72738082,61113.0,61112.0,0.000924]
[1719457240814,3.74138082,61113.0,61112.0,0.001924]
[1719457241218,3.74138082,61113.0,61112.0,0.000924]
[1719457241219,3.72738082,61113.0,61112.0,0.000924]
[1719457241835,3.75538082,61113.0,61112.0,0.002924]
[1719457242043,3.6703767,61113.0,61112.0,0.002924]
[1719457242243,3.81721096,61113.0,61112.0,0.002924]
[1719457242446,3.81721096,61113.0,61112.0,0.001924]
[1719457242447,3.8031883,61113.0,61112.0,0.001924]
[1719457243179,3.8171883,61113.0,61112.0,0.002924]
[1719457243682,3.81717811,61113.0,61112.0,0.002924]
[1719457244419,1.345697,61098.0,61097.0,0.000924]
[1719457244626,1.79689884,61098.0,61097.0,0.000924]
[1719457244866,2.46153884,61098.0,61097.0,0.000924]
[1719457245069,2.46154154,61098.0,61097.0,0.000924]
[1719457245226,2.48454154,61098.0,61097.0,0.000924]
[1719457245442,2.55783362,61098.0,61097.0,0.000924]
[1719457245643,2.88517562,61098.0,61097.0,0.000924]
[1719457245845,2.89917562,61098.0,61097.0,0.001924]
[1719457246251,2.91217562,61098.0,61097.0,0.002924]
[1719457246648,2.9114166,61098.0,61097.0,0.002924]
[1719457248439,2.87321377,61098.0,61097.0,0.002924]
[1719457249500,2.66301377,61098.0,61097.0,0.002924]
[1719457256237,2.70798036,61098.0,61097.0,0.002924]
[1719457256624,2.46828036,61098.0,61097.0,0.002924]
[1719457256832,2.73824496,61098.0,61097.0,0.002924]
[1719457257338,2.77689586,61098.0,61097.0,0.002924]
[1719457258124,2.44955386,61098.0,61097.0,0.002924]
[1719457258276,2.44955386,61098.0,61097.0,0.090024]
[1719457258277,1.78446159,61098.0,61097.0,0.090024]
[1719457260478,1.82263292,61098.0,61097.0,0.090024]
[1719457260691,1.67883292,61098.0,61097.0,0.162024]
[1719457261294,1.67743587,61098.0,61097.0,0.162024]
[1719457261920,0.76467142,61098.0,61097.0,0.162024]
[1719457262129,0.72640659,61098.0,61097.0,0.162024]